bitfinex/quotes_SOLUSD_20251231
["timestamp","ask_amount","ask_price","bid_price","bid_amount"]
[1767197851443,0.7162097,125.76,125.73,14.54]
[1767197851646,0.7162097,125.76,125.73,15.23459016]
[1767197851936,0.7162097,125.76,125.73,18.39819201]
[1767197852340,0.7162097,125.76,125.73,3.85819201]
[1767197852524,0.7162097,125.76,125.73,18.39819201]
[1767197852721,0.7162097,125.76,125.73,14.54]
[1767197855131,3.87981155,125.79,125.74,3.85819201]
[1767197855323,0.7162097,125.79,125.75,3.82757459]
[1767197855636,0.7162097,125.79,125.76,3.16360185]
[1767197856236,0.7162097,125.79,125.76,3.13467606]
[1767197856440,112.87051729,125.83,125.78,3.16360185]
[1767197856441,0.7162097,125.82,125.78,3.16360185]
[1767197856615,0.7162097,125.82,125.78,17.70360185]
[1767197856822,0.7162097,125.79,125.75,17.70360185]
[1767197857118,0.7162097,125.75,125.71,14.54]
[1767197857444,3.87981155,125.73,125.69,15.23459016]
[1767197857618,0.7162097,125.73,125.69,17.70360185]
[1767197857814,0.7162097,125.7,125.66,0.69459016]
[1767197858049,3.87981155,125.7,125.66,0.69459016]
[1767197858245,0.7162097,125.68,125.65,14.54]
[1767197858548,0.7162097,125.67,125.62,26.35864362]
[1767197858873,3.87981155,125.67,125.62,26.35864362]
[1767197859230,3.87981155,125.67,125.62,23.19504177]
[1767197859437,0.7162097,125.7,125.65,0.69459016]
[1767197859637,0.7162097,125.7,125.64,3.16360185]
[1767197859638,3.87981155,125.69,125.64,3.85819201]
[1767197859948,0.7162097,125.69,125.65,3.85819201]
[1767197860359,0.7162097,125.69,125.65,0.69459016]
[1767197860527,3.87981155,125.69,125.65,0.69459016]
[1767197860954,0.7162097,125.69,125.65,3.85819201]
[1767197861749,3.87981155,125.69,125.65,0.69459016]
[1767197862046,0.7162097,125.68,125.64,15.23459016]
[1767197862260,0.7162097,125.69,125.65,3.85819201]
[1767197862453,3.87981155,125.69,125.65,0.69459016]
[1767197863050,0.7162097,125.69,125.65,0.69459016]
[1767197863265,3.87981155,125.69,125.65,0.69459016]
[1767197863441,3.16360185,125.68,125.64,14.54]
[1767197863645,0.7162097,125.67,125.64,14.54]
[1767197863937,3.87981155,125.67,125.64,14.54]
[1767197864360,0.7162097,125.67,125.64,17.70360185]
[1767197864532,3.16360185,125.69,125.64,18.39819201]
[1767197864734,0.7162097,125.69,125.65,3.16360185]
[1767197865722,0.7162097,125.68,125.65,3.16360185]
[1767197865923,0.7162097,125.68,125.64,18.39819201]
[1767197867442,0.7162097,125.68,125.64,3.85819201]
[1767197867651,3.87981155,125.68,125.64,0.69459016]
[1767197868649,0.7162097,125.68,125.64,3.85819201]
[1767197869034,3.87981155,125.69,125.65,0.69459016]
[1767197869373,3.87981155,125.71,125.66,3.16360185]
[1767197869555,3.87981155,125.71,125.67,0.69459016]
[1767197869925,0.7162097,125.7,125.66,3.16360185]
[1767197870129,3.16360185,125.71,125.67,0.69459016]
[1767197870326,3.87981155,125.71,125.67,0.69459016]
[1767197870551,0.7162097,125.71,125.67,0.69459016]
[1767197870754,3.87981155,125.71,125.67,0.69459016]
[1767197870952,0.7162097,125.71,125.67,0.69459016]
[1767197871156,3.87981155,125.71,125.67,0.69459016]
[1767197871555,0.7162097,125.71,125.67,0.69459016]
[1767197872056,3.87981155,125.71,125.67,0.69459016]
[1767197874261,3.87981155,125.71,125.67,3.85819201]
[1767197875263,3.87981155,125.71,125.67,0.69459016]
[1767197875447,0.7162097,125.71,125.67,3.85819201]
[1767197875759,3.87981155,125.71,125.67,0.69459016]
[1767197875953,0.7162097,125.71,125.67,0.69459016]
[1767197876131,3.87981155,125.71,125.67,0.69459016]
[1767197876336,0.7162097,125.71,125.67,3.85819201]
[1767197876885,0.70765317,125.72,125.69,3.16360185]
[1767197877057,0.70765317,125.72,125.69,3.87841883]
[1767197877666,0.70765317,125.73,125.69,3.87841883]
[1767197879057,15.24765317,125.75,125.7,3.87841883]
[1767197879251,0.70765317,125.74,125.7,3.87841883]
[1767197879937,3.16360185,125.76,125.71,3.87841883]
[1767197880137,0.70765317,125.75,125.71,3.87841883]
[1767197881059,0.70765317,125.75,125.72,3.16360185]
[1767197881244,0.70765317,125.75,125.71,3.87841883]
[1767197881652,0.70765317,125.75,125.71,0.71481698]
[1767197882158,0.70765317,125.75,125.71,3.87841883]
[1767197883153,0.70765317,125.75,125.71,0.71481698]
[1767197883446,0.70765317,125.75,125.71,3.87841883]
[1767197883646,0.70765317,125.75,125.71,0.71481698]
[1767197883843,3.16360185,125.77,125.72,3.87841883]
[1767197884060,0.70765317,125.77,125.73,3.16360185]
[1767197884254,0.70765317,125.77,125.73,0.71481698]
[1767197884455,0.70765317,125.76,125.73,0.71481698]
[1767197884853,0.70765317,125.76,125.71,14.54]
[1767197885170,0.70765317,125.78,125.71,3.87841883]
[1767197885354,0.70765317,125.75,125.71,3.87841883]
[1767197886272,0.70765317,125.78,125.72,0.71481698]
[1767197886461,0.70765317,125.77,125.73,3.16360185]
[1767197886674,0.70765317,125.77,125.73,3.87841883]
[1767197886851,0.70765317,125.77,125.73,0.71481698]
[1767197887051,0.70765317,125.77,125.73,3.87841883]
[1767197887253,0.70765317,125.77,125.73,0.71481698]
[1767197887558,3.87125502,125.77,125.73,0.71481698]
[1767197887768,0.70765317,125.76,125.73,0.71481698]
[1767197888145,0.70765317,125.76,125.73,3.87841883]
[1767197888372,0.70765317,125.76,125.73,0.71481698]
[1767197889265,0.70765317,125.76,125.73,3.87841883]
[1767197890159,0.70765317,125.76,125.71,15.25481698]
[1767197890461,0.70765317,125.76,125.72,3.87841883]
[1767197890672,0.70765317,125.75,125.71,17.70360185]
[1767197890967,0.70765317,125.74,125.71,14.54]
[1767197891181,0.70765317,125.73,125.68,14.54]
[1767197891378,0.70765317,125.73,125.69,3.87841883]
[1767197891679,0.70765317,125.73,125.69,0.71481698]
[1767197892055,0.70765317,125.73,125.69,3.87841883]
[1767197893465,0.70765317,125.73,125.68,14.54]
[1767197893669,0.70765317,125.73,125.69,3.16360185]
[1767197893866,0.70765317,125.73,125.68,0.71481698]
[1767197894064,0.70765317,125.72,125.68,3.87841883]
[1767197894267,0.70765317,125.72,125.69,3.87841883]
[1767197894867,3.16360185,125.74,125.69,3.87841883]
[1767197895069,0.70765317,125.75,125.71,3.87841883]
[1767197895768,221.0438966,125.81,125.71,3.87841883]
[1767197895769,3.16360185,125.79,125.74,3.87841883]
[1767197895968,0.70765317,125.79,125.76,3.16360185]
[1767197896170,0.70765317,125.8,125.76,3.84938983]
[1767197896371,0.70765317,125.8,125.77,3.16360185]
[1767197896672,0.70765317,125.8,125.76,0.71481698]
[1767197896880,0.70765317,125.79,125.76,0.71481698]
[1767197897058,0.70765317,125.79,125.76,3.87841883]
[1767197897375,0.70765317,125.79,125.75,17.70360185]
[1767197898174,0.70765317,125.79,125.75,14.54]
[1767197898373,0.70765317,125.79,125.75,17.70360185]
[1767197898674,0.70765317,125.77,125.73,0.71481698]
[1767197898978,3.87125502,125.77,125.73,0.71481698]
[1767197899274,3.87125502,125.77,125.73,3.87841883]
[1767197899774,7.94915579,125.8,125.73,7.95337375]
[1767197899775,0.71616919,125.8,125.73,7.95337375]
[1767197900071,0.71616919,125.79,125.75,3.82390618]
[1767197900282,0.71616919,125.79,125.75,0.66030433]
[1767197900489,0.71616919,125.82,125.76,0.66030433]
[1767197900668,0.71616919,125.8,125.76,3.82390618]
[1767197901059,3.87977104,125.8,125.76,0.66030433]
[1767197901977,3.16360185,125.8,125.75,3.16360185]
[1767197902185,0.72066756,125.78,125.74,15.22489714]
[1767197902363,0.72066756,125.78,125.74,18.38849899]
[1767197902553,0.72066756,125.78,125.75,0.68489714]
[1767197902957,0.72066756,125.78,125.73,15.22489714]
[1767197903278,3.88426941,125.78,125.73,15.22489714]
[1767197903480,3.88426941,125.78,125.73,18.38849899]
[1767197903683,0.72066756,125.77,125.73,18.38849899]
[1767197903886,0.72066756,125.75,125.72,3.16360185]
[1767197904182,3.88426941,125.74,125.7,0.68489714]
[1767197904387,0.72066756,125.74,125.7,3.84849899]
[1767197905580,0.72066756,125.74,125.7,0.68489714]
[1767197906081,7.95091495,125.78,125.72,0.68489714]
[1767197906082,0.72066756,125.77,125.72,0.68489714]
[1767197906273,0.72066756,125.76,125.72,0.68489714]
[1767197906484,0.72066756,125.75,125.71,8.2187564]
[1767197910394,0.72066756,125.77,125.73,7.53385926]
[1767197910563,0.72066756,125.77,125.74,12.23977151]
[1767197911881,0.72066756,125.77,125.73,12.92466865]
[1767197912281,0.72066756,125.77,125.73,0.68489714]
[1767197912677,0.72066756,125.77,125.73,12.92466865]
[1767197913195,0.72066756,125.75,125.71,27.46466865]
[1767197913383,0.72066756,125.75,125.72,12.23977151]
[1767197913585,0.72066756,125.77,125.73,12.92466865]
[1767197913784,0.72066756,125.77,125.73,0.68489714]
[1767197914089,0.72066756,125.77,125.73,12.92466865]
[1767197914288,0.72066756,125.76,125.73,0.68489714]
[1767197914885,0.72066756,125.76,125.72,12.92466865]
[1767197915075,15.26066756,125.79,125.72,0.68489714]
[1767197915282,0.72066756,125.79,125.76,0.68489714]
[1767197915475,0.72066756,125.79,125.73,22.49345583]
[1767197915701,0.72066756,125.79,125.75,12.92466865]
[1767197916200,0.72066756,125.79,125.75,0.68489714]
[1767197916386,0.72066756,125.79,125.76,12.23977151]
[1767197916586,0.72066756,125.79,125.75,0.68489714]
[1767197916895,0.72066756,125.79,125.76,12.23977151]
[1767197917096,30.05302818,125.84,125.76,0.68489714]
[1767197917097,16.29720286,125.84,125.76,0.68489714]
[1767197917271,0.72066756,125.82,125.77,0.68489714]
[1767197917475,6.66447591,125.81,125.77,0.68489714]
[1767197917675,0.72066756,125.81,125.77,12.92466865]
[1767197918178,0.72066756,125.81,125.78,0.68489714]
[1767197918378,0.72066756,125.83,125.74,0.68489714]
[1767197918584,12.96043907,125.78,125.74,0.68489714]
[1767197918798,0.72066756,125.77,125.74,0.68489714]
[1767197919796,0.72066756,125.78,125.74,12.92466865]
[1767197920296,12.96043907,125.8,125.76,0.68489714]
[1767197920695,0.72066756,125.79,125.76,0.68489714]
[1767197920898,12.23977151,125.8,125.76,0.68489714]
[1767197921311,12.96043907,125.81,125.77,0.68489714]
[1767197921507,6.66894079,125.8,125.76,12.92466865]
[1767197921810,0.72066756,125.8,125.76,12.92466865]
[1767197922907,12.96043907,125.8,125.76,12.92466865]
[1767197923407,0.72066756,125.8,125.76,12.92466865]
[1767197923612,12.96043907,125.8,125.76,0.68489714]
[1767197924108,0.72066756,125.78,125.73,0.68489714]
[1767197924408,12.23977151,125.77,125.73,0.68489714]
[1767197924606,12.96043907,125.77,125.73,0.68489714]
[1767197924809,0.72066756,125.77,125.73,0.68489714]
[1767197924987,12.96043907,125.77,125.73,0.68489714]
[1767197925801,0.72066756,125.77,125.73,0.68489714]
[1767197926000,0.72066756,125.75,125.71,27.46466865]
[1767197926305,0.72066756,125.75,125.72,0.68489714]
[1767197926697,12.96043907,125.77,125.72,12.92466865]
[1767197926884,5.95376306,125.76,125.72,12.92466865]
[1767197927205,12.96043907,125.77,125.72,12.92466865]
[1767197927506,5.95410473,125.76,125.72,12.92466865]
[1767197927680,12.96043907,125.77,125.72,12.92466865]
[1767197928099,0.72066756,125.76,125.72,12.92466865]
[1767197929914,12.96043907,125.76,125.72,0.68489714]
[1767197930522,12.23977151,125.76,125.71,14.54]
[1767197930689,12.96043907,125.76,125.71,27.46466865]
[1767197930887,0.72066756,125.74,125.71,14.54]
[1767197931394,0.72066756,125.74,125.71,15.26015382]
[1767197932296,0.6535165,125.76,125.72,12.23977151]
[1767197932497,0.6535165,125.76,125.73,0.72015382]
[1767197932706,0.6535165,125.76,125.72,12.95992533]
[1767197932911,12.89328801,125.76,125.72,0.72015382]
[1767197934416,0.6535165,125.76,125.72,0.72015382]
[1767197934611,12.89328801,125.76,125.72,0.72015382]
[1767197936811,0.6535165,125.74,125.71,14.54]
[1767197937503,0.6535165,125.74,125.71,15.26015382]
[1767197937904,0.6535165,125.74,125.71,14.54]
[1767197938112,12.23977151,125.73,125.69,0.72015382]
[1767197938424,7.95176555,125.76,125.69,0.72015382]
[1767197938425,12.89328801,125.72,125.69,0.72015382]
[1767197939524,12.23977151,125.71,125.67,15.26015382]
[1767197939717,12.89328801,125.71,125.67,15.26015382]
[1767197940118,12.89328801,125.71,125.67,0.72015382]
[1767197941122,0.6535165,125.71,125.67,12.23977151]
[1767197941316,12.89328801,125.74,125.7,0.72015382]
[1767197941518,5.95349617,125.73,125.7,0.72015382]
[1767197941828,12.89328801,125.74,125.7,0.72015382]
[1767197942002,5.95349697,125.73,125.7,0.72015382]
[1767197942203,0.6535165,125.76,125.68,26.77977151]
[1767197942416,5.95283918,125.75,125.73,0.72015382]
[1767197942610,12.89328801,125.77,125.73,0.72015382]
[1767197942813,5.95259677,125.76,125.75,12.23977151]
[1767197943120,12.23977151,125.81,125.76,0.72015382]
[1767197943330,6.60453016,125.8,125.76,12.95992533]
[1767197943528,5.95101366,125.79,125.76,12.95992533]
[1767197943722,0.6535165,125.8,125.76,12.95992533]
[1767197944227,12.89328801,125.81,125.77,0.72015382]
[1767197944455,5.94990641,125.8,125.77,0.72015382]
[1767197944632,12.89328801,125.81,125.77,0.72015382]
[1767197944830,5.94990641,125.8,125.77,0.72015382]
[1767197945124,12.23977151,125.81,125.77,0.72015382]
[1767197945329,6.60325695,125.8,125.77,0.72015382]
[1767197945532,0.6535165,125.8,125.77,0.72015382]
[1767197945705,12.89328801,125.8,125.77,0.72015382]
[1767197945905,12.23977151,125.79,125.74,14.54]
[1767197946112,0.6535165,125.78,125.74,27.49992533]
[1767197946312,0.6535165,125.78,125.74,12.95992533]
[1767197947011,0.6535165,125.78,125.74,0.72015382]
[1767197947218,0.6535165,125.78,125.74,12.95992533]
[1767197948340,0.6535165,125.78,125.74,0.72015382]
[1767197948546,0.6535165,125.78,125.74,12.95992533]
[1767197949648,12.23977151,125.78,125.73,26.77977151]
[1767197949939,0.6535165,125.76,125.73,14.54]
[1767197950348,0.6535165,125.76,125.72,12.95992533]
[1767197950646,5.59731575,125.76,125.72,5.66395307]
[1767197950951,5.59731575,125.78,125.74,0.72015382]
[1767197951127,6.60366124,125.77,125.74,0.72015382]
[1767197951328,0.6535165,125.77,125.74,0.72015382]
[1767197953848,0.6535165,125.77,125.73,4.94379925]
[1767197954145,5.59731575,125.77,125.73,5.66395307]
[1767197955152,0.6535165,125.77,125.73,5.66395307]
[1767197955341,5.59731575,125.77,125.73,5.66395307]
[1767197956456,0.6535165,125.77,125.73,5.66395307]
[1767197957158,4.94379925,125.79,125.75,0.72015382]
[1767197957340,0.6535165,125.78,125.74,5.66395307]
[1767197957541,5.59731575,125.78,125.74,0.72015382]
[1767197957944,0.6535165,125.77,125.74,0.72015382]
[1767197958253,4.94379925,125.76,125.72,5.66395307]
[1767197958551,0.6535165,125.75,125.72,5.66395307]
[1767197958956,5.64224829,125.76,125.72,0.72015382]
[1767197959136,0.69844904,125.76,125.73,0.69577313]
[1767197959539,4.94379925,125.78,125.73,5.63957238]
[1767197959742,6.64891007,125.77,125.74,0.69577313]
[1767197960056,0.69844904,125.77,125.74,0.69577313]
[1767197960555,0.69844904,125.77,125.74,5.63957238]
[1767197960757,0.69844904,125.79,125.76,5.63957238]
[1767197961252,0.69844904,125.79,125.76,0.69577313]
[1767197961631,0.69844904,125.79,125.76,5.63957238]
[1767197962869,0.69844904,125.79,125.76,0.69577313]
[1767197963155,0.69844904,125.79,125.76,5.63957238]
[1767197967364,0.69844904,125.79,125.76,0.69577313]
[1767197967945,0.69844904,125.79,125.74,14.54]
[1767197967946,0.72154819,125.78,125.74,20.18642684]
[1767197968153,0.72154819,125.78,125.75,0.70262759]
[1767197968659,0.72154819,125.8,125.75,0.70262759]
[1767197968864,11.61426377,125.79,125.75,0.70262759]
[1767197969062,5.66534744,125.79,125.75,0.70262759]
[1767197969366,5.66534744,125.79,125.75,5.64642684]
[1767197969553,0.72154819,125.79,125.75,5.64642684]
[1767197969753,0.72154819,125.79,125.75,0.70262759]
[1767197969953,0.72154819,125.79,125.75,5.64642684]
[1767197971566,0.72154819,125.79,125.76,0.70262759]
[1767197972158,0.72154819,125.81,125.76,0.70262759]
[1767197972358,6.66972372,125.8,125.76,0.70262759]
[1767197972662,0.72154819,125.8,125.76,3.86457646]
[1767197973747,0.72154819,125.8,125.76,0.70262759]
[1767197974063,3.88349706,125.8,125.76,0.70262759]
[1767197974249,0.72154819,125.8,125.76,0.70262759]
[1767197974478,3.88349706,125.8,125.76,0.70262759]
[1767197975653,0.72154819,125.8,125.76,0.70262759]
[1767197975857,3.88349706,125.8,125.76,0.70262759]
[1767197976368,0.72154819,125.8,125.76,0.70262759]
[1767197976565,3.88349706,125.8,125.76,0.70262759]
[1767197978150,3.16194887,125.79,125.74,17.70194887]
[1767197978371,3.88349706,125.78,125.74,15.24262759]
[1767197978563,3.88349706,125.78,125.75,0.70262759]
[1767197980067,0.72154819,125.78,125.72,62.0]
[1767197980366,0.72154819,125.76,125.72,0.70262759]
[1767197980961,3.88349706,125.76,125.72,0.70262759]
[1767197981149,22.49013707,125.79,125.74,3.16194887]
[1767197981150,0.72154819,125.79,125.74,3.16194887]
[1767197981466,0.72154819,125.79,125.76,0.70262759]
[1767197981856,0.72154819,125.82,125.77,3.86457646]
[1767197982159,6.67006106,125.81,125.77,3.86457646]
[1767197982364,5.94851287,125.8,125.77,0.70262759]
[1767197982862,0.72154819,125.79,125.76,0.70262759]
[1767197983962,3.88349706,125.79,125.76,0.70262759]
[1767197984766,3.88349706,125.78,125.74,0.70262759]
[1767197985068,7.94922209,125.8,125.71,7.95475888]
[1767197985069,3.88349706,125.76,125.72,0.70262759]
[1767197985665,0.72154819,125.76,125.73,0.70262759]
[1767197986047,0.72154819,125.76,125.72,0.70262759]
[1767197986253,6.6811599,125.75,125.72,0.70262759]
[1767197986565,0.72154819,125.75,125.72,0.70262759]
[1767197987370,3.88349706,125.75,125.7,14.54]
[1767197987559,3.88349706,125.75,125.71,0.70262759]
[1767197987760,3.16194887,125.74,125.71,0.70262759]
[1767197988868,3.88349706,125.75,125.71,0.70262759]
[1767197989776,0.72154819,125.73,125.69,0.70262759]
[1767197990071,3.88349706,125.72,125.69,0.70262759]
[1767197990961,0.72154819,125.72,125.69,0.70262759]
[1767197991268,3.88349706,125.72,125.68,0.7189004]
[1767197992169,3.86256542,125.7,125.66,15.2589004]
[1767197992970,3.16194887,125.7,125.66,15.2589004]
[1767197993152,3.16194887,125.7,125.64,0.7189004]
[1767197993153,0.70061655,125.68,125.64,0.7189004]
[1767197993556,0.70061655,125.68,125.64,3.88084927]
[1767197994474,3.86256542,125.68,125.64,0.7189004]
[1767197995056,3.16194887,125.67,125.64,0.7189004]
[1767197995257,3.86256542,125.68,125.64,0.7189004]
[1767197995570,22.49510603,125.71,125.63,0.2]
[1767197995571,3.86256542,125.65,125.63,0.2]
[1767197996968,0.70061655,125.65,125.63,0.2]
[1767197997175,3.86256542,125.64,125.6,0.9189004]
[1767197997562,0.70061655,125.64,125.6,4.08084927]
[1767197997880,3.86256542,125.64,125.6,4.08084927]
[1767197998075,3.86256542,125.63,125.6,0.9189004]
[1767197998661,3.86256542,125.63,125.6,0.2]
[1767197998979,3.86256542,125.62,125.6,0.2]
[1767197999173,0.70061655,125.62,125.6,0.2]
[1767198000173,3.86256542,125.64,125.6,0.9189004]
[1767198000674,3.16194887,125.65,125.61,0.7189004]
[1767198000860,3.86256542,125.66,125.62,0.7189004]
[1767198001062,3.16194887,125.66,125.62,3.88084927]
[1767198001363,3.86256542,125.66,125.62,3.88084927]
[1767198001567,0.70061655,125.66,125.62,3.88084927]
[1767198001764,3.86256542,125.67,125.63,3.88084927]
[1767198001969,0.70061655,125.67,125.63,3.88084927]
[1767198002165,0.70061655,125.68,125.65,3.16194887]
[1767198002385,0.70061655,125.68,125.64,3.88084927]
[1767198002760,0.70061655,125.68,125.65,3.88084927]
[1767198002967,0.70061655,125.69,125.66,3.16194887]
[1767198003258,0.70061655,125.71,125.67,3.88084927]
[1767198003477,0.70061655,125.71,125.68,3.16194887]
[1767198003657,18.40256542,125.72,125.68,0.7189004]
[1767198003862,3.86256542,125.72,125.68,3.88084927]
[1767198004083,0.70061655,125.72,125.68,3.88084927]
[1767198004265,0.70061655,125.72,125.69,3.16194887]
[1767198004469,0.70061655,125.72,125.68,0.7189004]
[1767198004769,0.70061655,125.71,125.67,8.25640942]
[1767198005170,8.23812557,125.71,125.67,8.25640942]
[1767198005376,0.70061655,125.69,125.65,8.25640942]
[1767198005773,0.70061655,125.69,125.65,0.7189004]
[1767198005986,7.95547915,125.7,125.64,14.54]
[1767198006193,7.95547915,125.7,125.61,7.96093365]
[1767198006194,8.23812557,125.66,125.62,0.7189004]
[1767198007166,8.23812557,125.65,125.6,8.45640942]
[1767198007371,8.23812557,125.64,125.6,0.9189004]
[1767198007761,0.70061655,125.64,125.6,8.45640942]
[1767198008064,8.23812557,125.64,125.6,8.45640942]
[1767198008384,8.23812557,125.65,125.61,0.7189004]
[1767198009557,7.53750902,125.66,125.61,7.53750902]
[1767198009881,8.23812557,125.66,125.62,0.7189004]
[1767198010382,0.70061655,125.65,125.61,8.25640942]
[1767198010977,0.70061655,125.65,125.61,7.53750902]
[1767198011290,0.70061655,125.65,125.6,0.2]
[1767198011291,0.70061655,125.69,125.64,7.53750902]
[1767198011460,0.70061655,125.69,125.6,7.73750902]
[1767198011461,8.23812557,125.68,125.63,8.25640942]
[1767198011661,800.0,125.71,125.68,0.7189004]
[1767198011964,800.0,125.71,125.68,8.22637581]
[1767198012288,800.0,125.71,125.68,7.53750902]
[1767198012484,800.0,125.71,125.65,14.54]
[1767198012668,800.70061655,125.71,125.65,14.54]
[1767198012872,808.23812557,125.71,125.67,7.53750902]
[1767198013388,800.70061655,125.71,125.67,7.53750902]
[1767198013579,800.70061655,125.71,125.65,14.54]
[1767198013580,0.70061655,125.7,125.66,7.53750902]
[1767198014092,800.0,125.71,125.67,8.25640942]
[1767198014392,800.0,125.71,125.68,8.25640942]
[1767198014584,800.0,125.71,125.68,0.7189004]
[1767198016869,800.0,125.71,125.68,8.25640942]
[1767198017070,800.0,125.71,125.68,0.7189004]
[1767198017290,800.0,125.71,125.68,8.25640942]
[1767198019540,800.69574699,125.71,125.68,8.25640942]
[1767198020806,800.69574699,125.71,125.66,0.69091869]
[1767198020972,800.69574699,125.71,125.68,7.53750902]
[1767198021174,0.65351516,125.7,125.65,15.21832468]
[1767198021375,0.65351516,125.7,125.66,7.53750902]
[1767198021683,0.65351516,125.7,125.67,7.53750902]
[1767198022066,800.65351516,125.71,125.68,7.53750902]
[1767198023076,800.65351516,125.71,125.68,8.2158337]
[1767198023990,800.65351516,125.71,125.68,0.67832468]
[1767198024198,800.65351516,125.71,125.68,8.2158337]
[1767198025300,800.65351516,125.71,125.65,14.54]
[1767198025301,800.0,125.71,125.7,8.2158337]
[1767198025474,546.99575878,125.71,125.7,8.2158337]
[1767198025671,546.99575878,125.71,125.7,7.53750902]
[1767198026073,546.95428201,125.71,125.7,7.53750902]
[1767198026400,538.69538004,125.71,125.7,7.53750902]
[1767198026579,362.06254601,125.71,125.7,3.16377375]
[1767198027802,362.06254601,125.71,125.69,3.16377375]
[1767198027986,362.06254601,125.71,125.68,17.70377375]
[1767198029279,362.06254601,125.71,125.68,14.54]
[1767198029484,362.71606117,125.71,125.68,17.70377375]
[1767198030118,362.71606117,125.71,125.7,3.16377375]
[1767198030119,185.56318527,125.71,125.7,3.16377375]
[1767198030318,3.16377375,125.77,125.7,3.16377375]
[1767198030485,0.65351516,125.76,125.71,17.70377375]
[1767198030912,0.65351516,125.73,125.68,17.70377375]
[1767198031210,0.65351516,125.76,125.71,3.16377375]
[1767198031394,0.65351516,125.76,125.7,3.16377375]
[1767198031395,0.65351516,125.75,125.7,3.16377375]
[1767198031584,0.65351516,125.75,125.7,17.70377375]
[1767198032497,0.65351516,125.75,125.7,19.48377331]
[1767198032889,0.65351516,125.75,125.71,4.94377331]
[1767198034611,0.65351516,125.75,125.7,19.48377331]
[1767198034817,0.65351516,125.77,125.71,4.94377331]
[1767198035004,4.94377331,125.76,125.7,19.48377331]
[1767198035211,0.65351516,125.75,125.7,19.48377331]
[1767198038001,0.65351516,125.76,125.71,14.54]
[1767198038188,0.65351516,125.76,125.72,4.94377331]
[1767198040114,0.65351516,125.76,125.71,14.54]
[1767198040115,0.65351516,125.76,125.71,19.48377331]
[1767198041299,5.59728847,125.78,125.72,4.94377331]
[1767198041530,5.59728847,125.78,125.72,66.94377331]
[1767198041714,0.65351516,125.78,125.73,4.94377331]
[1767198042042,0.65351516,125.77,125.74,14.54]
[1767198045315,0.65351516,125.75,125.67,70.35013837]
[1767198045523,0.65351516,125.75,125.71,4.94377331]
[1767198045697,0.65351516,125.76,125.72,14.54]
[1767198045906,0.65351516,125.76,125.72,19.48377331]
[1767198047012,0.65351516,125.76,125.72,14.54]
[1767198050140,0.65351516,125.75,125.72,14.54]
[1767198050606,0.65351516,125.74,125.72,14.54]
[1767198051418,0.65351516,125.74,125.7,4.94377331]
[1767198051618,0.65351516,125.74,125.7,19.48377331]
[1767198051821,0.67367606,125.73,125.7,14.54]
[1767198056316,0.67367606,125.71,125.62,79.70243756]
[1767198056516,0.67367606,125.71,125.67,4.94377331]
[1767198056731,0.67367606,125.71,125.68,14.54]
[1767198057140,0.67367606,125.71,125.67,4.94377331]
[1767198057314,0.67367606,125.71,125.68,14.54]
[1767198062917,0.67367606,125.71,125.68,19.48377331]
[1767198063118,4.94377331,125.73,125.68,19.48377331]
[1767198063119,0.67367606,125.73,125.68,19.48377331]
[1767198064046,0.67367606,125.73,125.69,4.94377331]
[1767198064590,0.67367606,125.73,125.69,19.48377331]
[1767198065115,0.67367606,125.72,125.69,14.54]
[1767198065741,4.94377331,125.72,125.69,14.54]
[1767198065937,0.67367606,125.7,125.67,14.54]
[1767198066140,4.94377331,125.7,125.66,14.54]
[1767198066342,0.67367606,125.68,125.64,0.66465848]
[1767198066643,0.67367606,125.68,125.64,20.14843179]
[1767198067546,0.67367606,125.68,125.64,15.20465848]
[1767198068427,0.67367606,125.68,125.64,20.14843179]
[1767198068623,0.67367606,125.68,125.64,14.54]
[1767198068624,0.67367606,125.67,125.64,14.54]
[1767198068827,4.94377331,125.66,125.61,0.66465848]
[1767198069044,0.67367606,125.64,125.61,14.54]
[1767198075529,0.67367606,125.64,125.61,19.48377331]
[1767198075829,0.67367606,125.65,125.61,20.14843179]
[1767198076450,0.67367606,125.64,125.61,14.54]
[1767198077049,0.67367606,125.63,125.61,14.54]
[1767198083138,0.66915218,125.68,125.63,0.66046024]
[1767198083447,0.66915218,125.66,125.62,19.48377331]
[1767198083652,0.66915218,125.66,125.62,20.14423355]
[1767198084037,0.66915218,125.65,125.62,14.54]
[1767198084651,0.66915218,125.64,125.62,14.54]
[1767198085456,0.66915218,125.64,125.61,14.54]
[1767198087136,0.66915218,125.64,125.61,20.14423355]
[1767198088060,0.66915218,125.64,125.61,14.54]
[1767198089865,0.66915218,125.63,125.61,14.54]
[1767198090047,5.61292549,125.63,125.61,13.815]
[1767198090362,0.66915218,125.62,125.61,13.815]
[1767198090739,0.66915218,125.62,125.6,0.2]
[1767198091158,5.61292549,125.62,125.6,0.2]
[1767198091377,5.51292549,125.62,125.6,0.2]
[1767198092246,0.56915218,125.62,125.6,0.2]
[1767198092436,4.94377331,125.62,125.6,0.2]